bitfinex/quotes_BTCUSD_20250226
["timestamp","ask_amount","ask_price","bid_price","bid_amount"]
[1740569847964,0.20697502,89016.0,89015.0,0.0064241]
[1740569848158,0.50697502,89016.0,89015.0,0.0024241]
[1740569848332,0.54033449,89016.0,89015.0,0.0024241]
[1740569848535,0.54033449,89016.0,89015.0,0.0034241]
[1740569848735,0.54033449,89016.0,89015.0,0.0004241]
[1740569849159,0.55072411,89016.0,89015.0,0.0024241]
[1740569849964,0.5590683,89016.0,89015.0,0.0024241]
[1740569850383,0.57315423,89016.0,89015.0,0.0024241]
[1740569850939,0.59817387,89016.0,89015.0,0.0024241]
[1740569851130,0.59817387,89016.0,89015.0,0.0004241]
[1740569851332,0.4037229,89016.0,89015.0,0.03190177]
[1740569851648,0.4037229,89016.0,89015.0,0.01496495]
[1740569851854,0.4037229,89016.0,89015.0,0.18347495]
[1740569852056,0.1047229,89016.0,89015.0,0.01496495]
[1740569852425,0.25814597,89016.0,89015.0,0.01496495]
[1740569852576,0.08963697,89016.0,89015.0,0.01596495]
[1740569852943,0.25814597,89016.0,89015.0,0.01496495]
[1740569853387,0.08963697,89016.0,89015.0,0.01496495]
[1740569853591,0.08963697,89016.0,89015.0,0.20748336]
[1740569853793,0.08963697,89016.0,89015.0,0.18904763]
[1740569854169,0.08963697,89016.0,89015.0,0.18747495]
[1740569854386,0.168497,89023.0,89017.0,0.168506]
[1740569854576,0.168498,89022.0,89017.0,0.18304585]
[1740569854774,0.168495,89023.0,89017.0,0.18304585]
[1740569854972,0.01761962,89021.0,89017.0,0.18304585]
[1740569855178,0.01761962,89021.0,89019.0,0.01454085]
[1740569855375,0.01761962,89021.0,89020.0,0.18304185]
[1740569855676,0.01761962,89021.0,89020.0,0.01454085]
[1740569856085,0.18611862,89021.0,89020.0,0.01454085]
[1740569857514,0.18611862,89021.0,89020.0,0.01854085]
[1740569857718,0.18611862,89021.0,89020.0,0.02154085]
[1740569857918,0.18611862,89021.0,89020.0,0.01454085]
[1740569858355,0.18611862,89021.0,89020.0,0.02154085]
[1740569858735,0.18611862,89021.0,89020.0,0.007]
[1740569859113,0.18611862,89021.0,89020.0,0.003]
[1740569859521,0.18611862,89021.0,89020.0,0.006]
[1740569859746,0.18611862,89021.0,89020.0,0.003]
[1740569859946,0.18611862,89021.0,89020.0,0.005]
[1740569861447,0.0008484,89023.0,89020.0,0.005]
[1740569861784,0.168499,89021.0,89020.0,0.005]
[1740569862809,0.168499,89021.0,89020.0,0.003]
[1740569863005,0.168499,89021.0,89020.0,0.004]
[1740569863711,0.168499,89021.0,89020.0,0.003]
[1740569863900,0.168499,89021.0,89020.0,0.005]
[1740569864384,0.18611822,89021.0,89020.0,0.005]
[1740569866026,0.21962679,89021.0,89020.0,0.005]
[1740569867512,0.25104108,89021.0,89020.0,0.005]
[1740569867844,0.08254208,89021.0,89020.0,0.18804185]
[1740569868081,0.08254208,89021.0,89020.0,0.23112782]
[1740569868267,0.08254208,89021.0,89020.0,0.31045522]
[1740569868549,0.08254208,89021.0,89020.0,0.35905522]
[1740569868751,0.08254208,89021.0,89020.0,0.19055422]
[1740569868976,0.08254208,89021.0,89020.0,0.35905522]
[1740569869259,0.08254208,89021.0,89020.0,0.31554185]
[1740569869502,0.08254208,89021.0,89020.0,0.31954185]
[1740569869927,0.08254208,89021.0,89020.0,0.31554185]
[1740569870133,0.08254208,89021.0,89020.0,0.31254185]
[1740569870302,0.08254208,89021.0,89020.0,0.32054185]
[1740569870726,0.08254208,89021.0,89020.0,0.31696605]
[1740569871308,0.06492286,89021.0,89020.0,0.31696605]
[1740569871501,0.06492286,89021.0,89020.0,0.32296605]
[1740569872103,0.07330296,89021.0,89020.0,0.32296605]
[1740569872500,0.07330296,89021.0,89020.0,0.31896605]
[1740569872700,0.07330296,89021.0,89020.0,0.32396605]
[1740569873101,0.07330296,89021.0,89020.0,0.31796605]
[1740569873326,0.07330296,89021.0,89020.0,0.31296605]
[1740569873532,0.07330296,89021.0,89020.0,0.32496605]
[1740569874522,0.25941971,89021.0,89020.0,0.02696505]
[1740569875947,0.10768068,89021.0,89020.0,0.27546605]
[1740569876172,0.10768068,89021.0,89020.0,0.32653658]
[1740569877568,0.09092071,89021.0,89020.0,0.32653658]
[1740569881383,0.07330296,89021.0,89020.0,0.32653658]
[1740569882047,0.090074,89021.0,89020.0,0.32653658]
[1740569883289,0.090074,89021.0,89020.0,1.18823658]
[1740569883464,0.090074,89021.0,89020.0,1.23753658]
[1740569883654,0.07330296,89021.0,89020.0,1.23753658]
[1740569884459,0.09092046,89021.0,89020.0,1.23753658]
[1740569885632,0.08254036,89021.0,89020.0,1.23753658]
[1740569886581,0.04903179,89021.0,89020.0,1.23753658]
[1740569888420,0.04903179,89021.0,89020.0,1.35128411]
[1740569889319,0.04903179,89021.0,89020.0,1.34528411]
[1740569889753,0.04903179,89021.0,89020.0,1.34628411]
[1740569890093,0.02808893,89021.0,89020.0,1.34537227]
[1740569890299,0.02808893,89021.0,89020.0,1.35237227]
[1740569890747,0.0176175,89021.0,89020.0,1.23862474]
[1740569891144,0.0176175,89021.0,89020.0,1.23162474]
[1740569891346,0.0008484,89023.0,89022.0,0.168497]
[1740569892257,0.01132515,89023.0,89022.0,1.04473785]
[1740569892677,0.03228039,89023.0,89022.0,1.05445785]
[1740569892833,0.03228039,89023.0,89022.0,1.06845785]
[1740569894391,0.04989674,89023.0,89022.0,1.06845785]
[1740569896071,0.04989674,89023.0,89022.0,0.89996085]
[1740569896290,0.04989674,89023.0,89022.0,1.01381781]
[1740569896516,0.21839174,89023.0,89022.0,1.01381781]
[1740569896728,0.21839174,89023.0,89022.0,0.89024085]
[1740569897634,0.04989674,89023.0,89022.0,0.89024085]
[1740569898709,0.21839174,89023.0,89022.0,0.89024085]
[1740569899686,0.21839174,89023.0,89022.0,0.3391]
[1740569900701,0.51839174,89023.0,89022.0,0.3321]
[1740569900907,0.51839174,89023.0,89022.0,0.3391]
[1740569901351,0.53432674,89023.0,89022.0,0.3391]
[1740569901570,0.53432674,89023.0,89022.0,0.3321]
[1740569902023,0.53432674,89023.0,89022.0,0.3391]
[1740569902206,0.53432674,89023.0,89022.0,0.3251]
[1740569902365,0.53432674,89023.0,89022.0,0.3261]
[1740569903084,0.53432674,89023.0,89022.0,0.3281]
[1740569903725,0.53432674,89023.0,89022.0,0.3271]
[1740569904238,0.53432674,89023.0,89022.0,0.3281]
[1740569904781,0.53432674,89023.0,89022.0,0.3261]
[1740569905026,0.53432674,89023.0,89022.0,0.3251]
[1740569905220,0.53532674,89023.0,89022.0,0.3251]
[1740569905746,0.55294525,89023.0,89022.0,0.3251]
[1740569907295,0.55294525,89023.0,89020.0,0.0004242]
[1740569907296,0.468499,89021.0,89020.0,0.0004242]
[1740569907924,0.47687016,89021.0,89020.0,0.0004242]
[1740569908418,0.48734691,89021.0,89020.0,0.0004242]
[1740569908902,0.5418535,89021.0,89020.0,0.0004242]
[1740569909637,0.53348234,89021.0,89020.0,0.0004242]
[1740569909813,0.53448234,89021.0,89020.0,0.0004242]
[1740569910237,0.50193099,89021.0,89020.0,0.0004242]
[1740569910417,0.50189099,89021.0,89020.0,0.0004242]
[1740569910718,0.03343199,89021.0,89020.0,0.0004242]
[1740569910873,0.2029663,89021.0,89020.0,0.0004242]
[1740569912255,0.1307,89019.0,89007.0,2e-07]
[1740569912459,0.168531,89004.0,88998.0,0.3251]
[1740569912605,0.46956631,89004.0,88998.0,0.3251]
[1740569912814,0.50440139,89004.0,88998.0,0.3251]
[1740569913011,0.58540139,89004.0,88998.0,0.3251]
[1740569913615,0.58544368,89004.0,88998.0,0.3251]
[1740569913973,0.56005004,89004.0,89003.0,2e-07]
[1740569914180,0.168582,88977.0,88976.0,0.3251]
[1740569914585,0.18700185,88977.0,88976.0,0.3251]
[1740569915419,0.21847611,88977.0,88976.0,0.3251]
[1740569915641,0.21847611,88977.0,88976.0,0.3311]
[1740569915809,0.23610216,88977.0,88976.0,0.3311]
[1740569917269,0.23710216,88977.0,88976.0,0.3311]
[1740569917664,0.23610216,88977.0,88976.0,0.3261]
[1740569917862,0.23610216,88977.0,88976.0,0.3251]
[1740569918064,0.23610216,88977.0,88976.0,0.3261]
[1740569921491,0.21847611,88977.0,88976.0,0.3261]
[1740569921692,0.20005626,88977.0,88976.0,0.3261]
[1740569921903,0.03147426,88977.0,88976.0,0.34064085]
[1740569922420,0.20005626,88977.0,88976.0,0.3261]
[1740569922602,0.30103531,88978.0,88976.0,0.3261]
[1740569922806,0.168582,88977.0,88976.0,0.32651834]
[1740569923007,0.16961731,88977.0,88976.0,0.32651834]
[1740569923475,0.16961731,88977.0,88976.0,0.32851834]
[1740569924041,0.16961731,88977.0,88976.0,0.32551834]
[1740569924237,0.16961731,88977.0,88976.0,0.32651834]
[1740569924796,0.18724462,88977.0,88976.0,0.33051834]
[1740569924964,0.18724462,88977.0,88976.0,0.32651834]
[1740569925917,0.18724462,88977.0,88976.0,0.32751834]
[1740569929730,0.18724462,88977.0,88976.0,0.32794274]
[1740569931285,0.16961731,88977.0,88976.0,0.32794274]
[1740569934541,0.18724514,88977.0,88976.0,0.32794274]
[1740569935917,0.19767369,88977.0,88976.0,0.32794274]
[1740569937019,0.21853782,88977.0,88976.0,0.32794274]
[1740569940017,0.04892051,88977.0,88976.0,0.32794274]
[1740569940238,0.04892051,88977.0,88976.0,0.34248359]
[1740569940894,0.04892051,88977.0,88976.0,0.51106759]
[1740569941287,0.03129268,88977.0,88976.0,0.58796759]
[1740569941686,0.03129268,88977.0,88976.0,0.58696759]
[1740569941863,0.03129268,88977.0,88976.0,0.59096759]
[1740569942064,0.03129268,88977.0,88976.0,0.70582455]
[1740569942264,0.03129268,88977.0,88976.0,0.58696759]
[1740569942637,0.03229268,88977.0,88976.0,0.59096759]
[1740569942902,0.03229268,88977.0,88976.0,1.12756759]
[1740569943123,0.03329268,88977.0,88976.0,1.13056759]
[1740569943313,0.01242855,88977.0,88976.0,1.13056759]
[1740569944399,0.01242855,88977.0,88976.0,1.12556759]
[1740569944613,0.01142855,88977.0,88976.0,1.12556759]
[1740569944809,0.18101055,88977.0,88976.0,0.96398359]
[1740569945104,0.01242855,88977.0,88976.0,0.97370359]
[1740569945808,0.19863703,88977.0,88976.0,0.97370359]
[1740569948841,0.19863703,88977.0,88976.0,0.96398359]
[1740569949038,0.19863703,88977.0,88976.0,0.87254274]
[1740569949287,0.19863703,88977.0,88976.0,0.33594274]
[1740569950633,0.19763703,88977.0,88976.0,0.32894274]
[1740569950976,0.49763703,88977.0,88976.0,0.00384274]
[1740569951170,0.51819,88973.0,88968.0,0.000424]
[1740569951364,0.59509,88973.0,88968.0,0.000424]
[1740569951548,0.168598,88969.0,88968.0,0.000424]
[1740569951751,0.46963331,88969.0,88968.0,0.000424]
[1740569952003,0.468598,88969.0,88968.0,0.000424]
[1740569952865,0.168618,88958.0,88957.0,0.3251]
[1740569953066,0.2079608,88958.0,88957.0,0.3251]
[1740569953271,0.20899611,88958.0,88957.0,0.3251]
[1740569953631,0.20899611,88958.0,88957.0,0.2997272]
[1740569953993,0.16965331,88958.0,88957.0,0.2997272]
[1740569954175,0.19678505,88958.0,88957.0,0.2997272]
[1740569954577,0.20514373,88958.0,88957.0,0.2997272]
[1740569954780,0.2594757,88958.0,88957.0,0.2997272]
[1740569955000,0.25844039,88958.0,88957.0,0.2997272]
[1740569955319,0.5417372,88958.0,88957.0,0.3007272]
[1740569955522,0.6190372,88958.0,88957.0,0.26689579]
[1740569955719,0.62742992,88958.0,88957.0,0.26689579]
[1740569956026,0.64506145,88958.0,88957.0,0.23306438]
[1740569956550,0.64506145,88958.0,88957.0,0.001]
[1740569956700,0.64706145,88958.0,88957.0,0.001]
[1740569957077,0.47844345,88958.0,88953.0,0.0004241]
[1740569957418,0.16965531,88957.0,88953.0,0.0004241]
[1740569957783,0.22398728,88957.0,88953.0,0.0004241]
[1740569958221,0.22398728,88957.0,88939.0,0.23206438]
[1740569958222,0.168653,88940.0,88939.0,0.19885708]
[1740569958676,0.46968831,88940.0,88939.0,0.19885708]
[1740569958840,0.468653,88940.0,88939.0,0.19885708]
[1740569959045,0.50335215,88940.0,88939.0,0.19885708]
[1740569959245,0.50335215,88940.0,88916.0,0.16502567]
[1740569959246,0.19964115,88940.0,88916.0,0.16502567]
[1740569959449,0.46867,88931.0,88916.0,0.16502567]
[1740569960334,0.49673507,88931.0,88916.0,0.16502567]
[1740569960676,0.58438567,88931.0,88916.0,0.16502567]
[1740569961350,0.56774915,88931.0,88916.0,0.16502567]
[1740569961560,0.57074915,88931.0,88916.0,0.16502567]
[1740569961928,0.5457892,88931.0,88916.0,0.16502567]
[1740569962970,0.0741192,88931.0,88916.0,0.38995567]
[1740569963173,0.0781192,88931.0,88929.0,0.0829]
[1740569963459,0.0781192,88931.0,88930.0,0.16544967]
[1740569963460,0.2467892,88931.0,88930.0,0.16544967]
[1740569963631,0.25360112,88931.0,88930.0,0.16544967]
[1740569963931,0.0791192,88931.0,88930.0,0.16544967]
[1740569964165,0.0771192,88931.0,88930.0,0.21324967]
[1740569964481,0.0731192,88931.0,88930.0,0.21324967]
[1740569964862,0.2467892,88931.0,88930.0,0.21324967]
[1740569965034,0.2467892,88931.0,88930.0,0.16544967]
[1740569965245,0.23343052,88931.0,88930.0,0.16544967]
[1740569965696,0.23343052,88931.0,88930.0,0.000424]
[1740569966023,0.1967351,88931.0,88930.0,0.000424]
[1740569966140,0.19777041,88931.0,88930.0,0.000424]
[1740569966537,0.18734186,88931.0,88930.0,0.000424]
[1740569967157,0.20171557,88931.0,88930.0,0.000424]
[1740569967596,0.25995787,88931.0,88930.0,0.000424]
[1740569967856,0.25892256,88931.0,88930.0,0.000424]
[1740569968074,0.26292256,88931.0,88930.0,0.000424]
[1740569968247,0.26492256,88931.0,88930.0,0.000424]
[1740569968385,0.26692256,88931.0,88930.0,0.000424]
[1740569968590,0.09225256,88931.0,88930.0,0.000424]
[1740569969043,0.09325256,88931.0,88930.0,0.000424]
[1740569969414,0.09325256,88931.0,88930.0,0.16544967]
[1740569969613,0.26192256,88931.0,88930.0,0.16544967]
[1740569969836,0.25992256,88931.0,88930.0,0.16544967]
[1740569970038,0.28704507,88931.0,88930.0,0.16544967]
[1740569970747,0.25384916,88931.0,88930.0,0.16544967]
[1740569970981,0.25384916,88931.0,88930.0,0.16644967]
[1740569971215,0.23621261,88931.0,88930.0,0.16644967]
[1740569971829,0.22791366,88931.0,88930.0,0.16644967]
[1740569972059,0.20079115,88931.0,88930.0,0.16644967]
[1740569972263,0.20082646,88931.0,88930.0,0.16644967]
[1740569972476,0.21112202,88931.0,88930.0,0.16644967]
[1740569972691,0.21112202,88931.0,88930.0,0.16700557]
[1740569972845,0.17220422,88931.0,88930.0,0.16600557]
[1740569973317,0.17320422,88931.0,88930.0,0.16600557]
[1740569973957,0.00453422,88931.0,88930.0,0.16600557]
[1740569974189,0.00253422,88931.0,88930.0,0.29510557]
[1740569974409,0.00253422,88931.0,88930.0,0.47831742]
[1740569974628,0.00453422,88931.0,88930.0,0.47831742]
[1740569974826,0.00453422,88931.0,88930.0,0.59217438]
[1740569975035,0.00253422,88931.0,88930.0,0.59217438]
[1740569975466,0.00253422,88931.0,88930.0,0.47831742]
[1740569975836,0.01863468,88931.0,88930.0,0.47831742]
[1740569976243,0.01948388,88931.0,88930.0,0.47831742]
[1740569976416,0.02048388,88931.0,88930.0,0.47831742]
[1740569976966,0.02048388,88931.0,88930.0,1.01491742]
[1740569977207,0.02148388,88931.0,88930.0,1.10541346]
[1740569977591,0.02148388,88931.0,88930.0,1.01491742]
[1740569977839,0.02148388,88931.0,88930.0,0.83170557]
[1740569978026,0.19015388,88931.0,88930.0,0.69335649]
[1740569978224,0.19015388,88931.0,88930.0,0.5366]
[1740569978439,0.19015388,88931.0,88930.0,0.5352321]
[1740569978780,0.18915388,88931.0,88930.0,0.5352321]
[1740569978989,0.16967,88931.0,88930.0,0.52807067]
[1740569979211,0.18730557,88931.0,88930.0,0.52807067]
[1740569979416,0.01863557,88931.0,88930.0,0.52807067]
[1740569979664,0.18830557,88931.0,88930.0,0.58087774]
[1740569979841,0.18730557,88931.0,88930.0,0.52807067]
[1740569980244,0.18830557,88931.0,88930.0,0.52478207]
[1740569980418,0.18730557,88931.0,88930.0,0.52478207]
[1740569981202,0.18730557,88931.0,88930.0,0.3251]
[1740569982054,0.16967,88931.0,88930.0,0.3251]
[1740569982615,0.224885,88935.0,88930.0,0.3251]
[1740569982817,0.224885,88934.0,88930.0,0.3251]
[1740569983043,0.16867,88931.0,88930.0,0.3251]
[1740569983745,0.16867,88931.0,88930.0,0.3271]
[1740569984217,0.16867,88931.0,88930.0,0.3251]
[1740569984412,0.16967,88931.0,88930.0,0.3271]
[1740569985933,0.19054096,88931.0,88930.0,0.3271]
[1740569986748,0.20817623,88931.0,88930.0,0.3271]
[1740569987627,0.18730527,88931.0,88930.0,0.3271]
[1740569989194,0.18730527,88931.0,88930.0,0.327524]
[1740569989396,0.18815327,88931.0,88930.0,0.327524]
[1740569990757,0.01948327,88931.0,88930.0,0.327524]
[1740569990976,0.18815327,88931.0,88930.0,0.327524]
[1740569991226,0.170518,88931.0,88930.0,0.327524]
[1740569991695,0.001848,88931.0,88930.0,0.327524]
[1740569991926,0.001848,88931.0,88930.0,0.408524]
[1740569992413,0.001848,88931.0,88930.0,0.577195]
[1740569992887,0.001848,88931.0,88930.0,0.408524]
[1740569993601,0.001848,88931.0,88930.0,0.577195]
[1740569994423,0.01948309,88931.0,88930.0,0.577195]
[1740569995162,0.01948309,88931.0,88930.0,0.408524]
[1740569995386,0.01948309,88931.0,88930.0,0.577195]
[1740569998040,0.04036376,88931.0,88930.0,0.577195]
[1740569998242,0.04036376,88931.0,88921.0,0.52478207]
[1740569998243,0.04036376,88931.0,88910.0,3e-07]
[1740569998244,0.168708,88911.0,88910.0,3e-07]
[1740569998474,0.168708,88911.0,88879.0,0.3251]
[1740569998475,0.168751,88888.0,88879.0,0.3251]
[1740569998673,0.20966773,88888.0,88879.0,0.3251]
[1740569998845,0.22695022,88888.0,88879.0,0.3251]
[1740569999051,0.24459393,88888.0,88879.0,0.3251]
[1740569999874,0.24501195,88888.0,88879.0,0.3251]
[1740570000305,0.24601195,88888.0,88879.0,0.3251]
[1740570000565,0.20509522,88888.0,88879.0,0.3251]
[1740570001195,0.20409522,88888.0,88879.0,0.3251]
[1740570001444,0.18645151,88888.0,88879.0,0.3251]
[1740570001795,0.1947864,88888.0,88879.0,0.3251]
[1740570001994,0.1947864,88888.0,88871.0,0.0002]
[1740570003135,0.1957864,88888.0,88871.0,0.0002]
[1740570003695,0.1947864,88888.0,88871.0,0.0002]
[1740570003832,0.18645151,88888.0,88871.0,0.0002]
[1740570004645,0.51553832,88888.0,88871.0,0.0002]
[1740570005889,0.53318491,88888.0,88871.0,0.0002]
[1740570006085,0.23318491,88888.0,88871.0,0.0002]
[1740570006447,0.23518491,88888.0,88871.0,0.0002]
[1740570008311,0.23518491,88888.0,88887.0,0.0004241]
[1740570009124,0.22687445,88888.0,88887.0,0.0004241]
[1740570009745,0.2060981,88888.0,88887.0,0.0004241]
[1740570010539,0.18845151,88888.0,88887.0,0.0004241]
[1740570010743,0.01970051,88888.0,88887.0,0.0004241]
[1740570010965,0.19188944,88888.0,88887.0,0.0004241]
[1740570011183,0.20017764,88888.0,88887.0,0.0004241]
[1740570011799,0.03142664,88888.0,88887.0,0.5397771]
[1740570012023,0.03142664,88888.0,88887.0,1.11499545]
[1740570012382,0.02942664,88888.0,88887.0,1.11499545]
[1740570012579,0.02113844,88888.0,88887.0,1.07467917]
[1740570013029,0.168708,88911.0,88887.0,0.90592617]
[1740570013202,0.09089286,88912.0,88888.0,0.52635676]
[1740570013415,0.01563119,88912.0,88890.0,0.224997]
[1740570013624,0.168717,88907.0,88898.0,0.168732]
[1740570013980,0.168717,88907.0,88888.0,0.52478207]
[1740570013981,0.224923,88919.0,88888.0,0.52478207]
[1740570014112,0.168709,88911.0,88900.0,0.22497]
[1740570014313,0.168709,88911.0,88889.0,0.09954665]
[1740570014546,0.003,88911.0,88898.0,0.16873]
[1740570014765,0.168713,88908.0,88899.0,0.168729]
[1740570014945,0.003,88911.0,88889.0,0.09954665]
[1740570015146,0.01764126,88908.0,88902.0,0.168723]
[1740570015349,0.168711,88910.0,88902.0,0.168723]
[1740570015547,0.224946,88910.0,88900.0,0.22497]
[1740570015764,0.171708,88911.0,88890.0,0.10055982]
[1740570015963,0.004,88911.0,88891.0,0.00157469]
[1740570016167,0.228945,88911.0,88901.0,0.168726]
[1740570016325,0.228945,88911.0,88899.0,0.224973]
[1740570016326,0.01616052,88912.0,88893.0,0.224989]
[1740570016531,0.001,88910.0,88899.0,0.16873]
[1740570016753,0.001,88910.0,88897.0,0.224979]
[1740570017033,0.22495,88909.0,88898.0,0.493832]
[1740570017305,0.168717,88907.0,88898.0,0.3251]
[1740570017484,0.168717,88907.0,88898.0,0.493831]
[1740570017879,0.168717,88906.0,88898.0,0.493831]
[1740570018081,0.001,88910.0,88898.0,0.3251]
[1740570018292,0.168714,88908.0,88898.0,0.550075]
[1740570018488,0.168714,88908.0,88899.0,0.16873]
[1740570018707,0.168714,88908.0,88900.0,0.168727]
[1740570018933,0.225947,88910.0,88898.0,0.3251]
[1740570019150,0.168712,88909.0,88901.0,0.168726]
[1740570019287,0.001,88910.0,88902.0,0.168723]
[1740570019288,0.01764156,88908.0,88902.0,0.168723]
[1740570019655,0.01764156,88908.0,88901.0,0.168726]
[1740570020170,0.01764156,88908.0,88900.0,0.169727]
[1740570020397,0.168716,88907.0,88901.0,0.493826]
[1740570020777,0.01764156,88908.0,88902.0,0.168724]
[1740570021081,0.18635456,88908.0,88902.0,0.168723]
[1740570021301,0.01582411,88912.0,88901.0,0.3251]
[1740570021495,0.168718,88906.0,88901.0,0.3251]
[1740570021719,0.168718,88906.0,88902.0,0.001]
[1740570021973,0.168715,88908.0,88902.0,0.001]
[1740570022159,0.168715,88908.0,88902.0,0.169725]
[1740570022397,0.168715,88908.0,88902.0,0.001]
[1740570022571,0.168715,88908.0,88901.0,0.3251]
[1740570022729,0.168715,88908.0,88901.0,0.494826]
[1740570022929,0.01608009,88912.0,88901.0,0.3261]
[1740570023133,0.224944,88911.0,88902.0,0.178765]
[1740570023332,0.168712,88909.0,88902.0,0.01104]
[1740570023536,0.168715,88908.0,88902.0,0.01004]
[1740570023736,0.168721,88905.0,88902.0,0.01004]
[1740570023939,0.168722,88904.0,88902.0,0.01004]
[1740570024341,0.168723,88903.0,88902.0,0.01004]
[1740570024771,0.01764142,88904.0,88902.0,0.01004]
[1740570025751,0.01764142,88904.0,88903.0,0.168723]
[1740570025985,0.01764142,88904.0,88902.0,0.01004]
[1740570026212,0.01764142,88904.0,88902.0,0.01104]
[1740570026367,0.01864142,88904.0,88902.0,0.01104]
[1740570029421,0.01864142,88904.0,88902.0,0.179764]
[1740570029825,0.01864142,88904.0,88903.0,0.168723]
[1740570030079,0.01864142,88904.0,88902.0,0.01104]
[1740570030278,0.02079401,88903.0,88902.0,0.179763]
[1740570030842,0.18951701,88903.0,88902.0,0.01104]
[1740570031034,0.02079401,88903.0,88902.0,0.01104]
[1740570031540,0.02079401,88903.0,88902.0,0.01004]
[1740570031746,0.02179401,88903.0,88902.0,0.01104]
[1740570032007,0.02175401,88903.0,88902.0,0.01104]
[1740570032207,0.02899881,88903.0,88902.0,0.01104]
[1740570033504,0.02899881,88903.0,88902.0,0.179765]
[1740570033865,0.02175401,88903.0,88902.0,0.01104]
[1740570034088,0.02899186,88903.0,88902.0,0.01104]
[1740570034516,0.02899186,88903.0,88902.0,0.179765]
[1740570034739,0.02175401,88903.0,88902.0,0.504865]
[1740570034937,0.02899705,88903.0,88902.0,0.504865]
[1740570035136,0.02175401,88903.0,88902.0,0.504865]
[1740570035694,0.02175401,88903.0,88902.0,0.33614]
[1740570035914,0.03939458,88903.0,88902.0,0.33614]
[1740570036357,0.04663762,88903.0,88902.0,0.504865]
[1740570036526,0.03939458,88903.0,88902.0,0.504865]
[1740570036730,0.04772061,88903.0,88902.0,0.504865]
[1740570037299,0.0269666,88903.0,88902.0,0.504865]
[1740570037709,0.0269666,88903.0,88902.0,0.33614]
[1740570037889,0.1956896,88903.0,88902.0,0.33614]
[1740570038098,0.20295422,88903.0,88902.0,0.33614]
[1740570038335,0.19462819,88903.0,88902.0,0.33614]
[1740570038516,0.19462819,88903.0,88902.0,0.3261]
[1740570039088,0.19462819,88903.0,88902.0,0.3265242]
[1740570039619,0.19362819,88903.0,88902.0,0.3255242]
[1740570040022,0.19362819,88903.0,88902.0,0.3265242]
[1740570040545,0.19362819,88903.0,88902.0,0.0014242]
[1740570040946,0.20198001,88903.0,88902.0,0.0014242]
[1740570041135,0.20198001,88903.0,88902.0,0.0004242]
[1740570041575,0.20298001,88903.0,88902.0,0.0014242]
[1740570041722,0.20298001,88903.0,88902.0,0.0004242]
[1740570042124,0.20298001,88903.0,88902.0,0.0014242]
[1740570044557,0.18533944,88903.0,88902.0,0.0014242]
[1740570046295,0.48533944,88903.0,88902.0,0.0014242]
[1740570046618,0.60885617,88903.0,88902.0,9.9e-07]
[1740570047044,0.60885617,88903.0,88887.0,0.00054951]
[1740570047045,0.168751,88888.0,88887.0,5.1e-07]
[1740570047255,0.27676378,88888.0,88887.0,5.1e-07]
[1740570047447,0.2966096,88888.0,88887.0,5.1e-07]
[1740570048480,0.32460648,88888.0,88887.0,5.1e-07]
[1740570048835,0.32560648,88888.0,88887.0,5.1e-07]
[1740570049886,0.20488975,88888.0,88887.0,5.1e-07]
[1740570050982,0.03613875,88888.0,88887.0,5.1e-07]
[1740570051210,0.03313875,88888.0,88887.0,0.16875351]
[1740570051429,0.00935182,88888.0,88887.0,0.16875351]
[1740570051835,0.17810282,88888.0,88887.0,5.1e-07]
[1740570052043,0.18455663,88888.0,88887.0,5.1e-07]
[1740570052674,0.18455663,88888.0,88887.0,0.32552481]
[1740570052937,0.01665423,88888.0,88887.0,0.49427781]
[1740570053144,0.01665423,88888.0,88887.0,1.01905988]
[1740570053356,0.00920042,88888.0,88887.0,1.10015988]
[1740570054377,0.0008486,88888.0,88887.0,1.10015988]
[1740570054924,0.0028486,88888.0,88887.0,1.10015988]
[1740570055173,0.0018486,88888.0,88887.0,1.11007988]
[1740570055543,0.0028486,88888.0,88887.0,1.11007988]
[1740570055911,0.02049107,88888.0,88887.0,1.11007988]
[1740570056131,0.02036044,88888.0,88887.0,1.11007988]
[1740570056385,0.01936044,88888.0,88887.0,1.11007988]
[1740570056649,0.02036044,88888.0,88887.0,1.11007988]
[1740570061471,0.02036044,88888.0,88887.0,1.41007988]
[1740570061472,0.00271797,88888.0,88887.0,1.41007988]
[1740570061653,0.00271797,88888.0,88887.0,1.58526826]
[1740570062223,0.00171797,88888.0,88887.0,1.58526826]
[1740570062456,0.00171797,88888.0,88887.0,1.49076388]
[1740570062656,0.16946897,88888.0,88887.0,0.89720688]
[1740570062863,0.01866487,88888.0,88887.0,0.85630688]
[1740570063067,0.00916955,88888.0,88887.0,0.85630688]
[1740570063273,0.00916955,88888.0,88887.0,1.02505988]
[1740570063478,0.00071797,88888.0,88887.0,1.01905988]
[1740570063732,0.00271797,88888.0,88887.0,0.86330688]
[1740570064046,0.00171797,88888.0,88887.0,0.85630688]
[1740570064304,0.00071797,88888.0,88887.0,0.85030688]
[1740570064466,0.00814362,88888.0,88887.0,0.33052481]
[1740570064739,0.00914362,88888.0,88887.0,0.33152481]
[1740570064878,0.00914362,88888.0,88887.0,0.33852481]
[1740570065096,0.17789462,88888.0,88887.0,0.33852481]
[1740570065306,0.17789462,88888.0,88887.0,0.33152481]
[1740570065524,0.17789462,88888.0,88887.0,0.33852481]
[1740570065753,0.02895749,88888.0,88887.0,0.50127781]
[1740570065985,0.04660078,88888.0,88887.0,0.33252481]
[1740570066184,0.04660078,88888.0,88887.0,0.50527781]
[1740570066185,0.04017513,88888.0,88887.0,0.50527781]
[1740570066431,0.04762152,88888.0,88887.0,0.50527781]
[1740570066643,0.04017513,88888.0,88887.0,0.50527781]
[1740570066845,0.04017513,88888.0,88887.0,0.33652481]
[1740570067059,0.04017513,88888.0,88887.0,0.49827781]
[1740570067279,0.05158436,88888.0,88887.0,0.50427781]
[1740570067695,0.05058436,88888.0,88887.0,0.49827781]
[1740570067920,0.05158436,88888.0,88887.0,0.50527781]
[1740570068170,0.05158436,88888.0,88887.0,0.67019311]
[1740570068391,0.05158436,88888.0,88887.0,0.97019311]
[1740570068614,0.03077049,88888.0,88887.0,0.94069781]
[1740570068830,0.0752,88911.0,88887.0,0.46202481]
[1740570069031,0.168749,88889.0,88888.0,0.84988207]
[1740570069508,0.19386187,88889.0,88888.0,0.84888207]
[1740570069740,0.19468406,88889.0,88888.0,0.84888207]
[1740570070204,0.19568406,88889.0,88888.0,0.85188484]
[1740570070687,0.19568406,88889.0,88888.0,0.85051349]
[1740570071381,0.18636914,88889.0,88888.0,0.85051349]
[1740570071633,0.18636914,88889.0,88888.0,0.85751349]
[1740570071926,0.18536914,88889.0,88888.0,0.84651349]
[1740570072159,0.18536914,88889.0,88888.0,0.85051349]